bitfinex/quotes_ETHUSD_20240722
["timestamp","ask_amount","ask_price","bid_price","bid_amount"]
[1721607000404,5.82479,3540.1,3539.5,0.02670105]
[1721607000908,3.0,3540.1,3539.5,0.02670105]
[1721607001086,0.35,3540.4,3539.5,0.02670105]
[1721607001408,2.82435,3540.7,3539.5,0.02670105]
[1721607001409,2.82492,3540.0,3539.5,0.02670105]
[1721607001772,3.0,3539.9,3539.5,0.02670105]
[1721607002101,5.82478,3540.1,3539.5,0.02670105]
[1721607002780,2.82486,3540.0,3539.5,0.02670105]
[1721607003110,3.0,3539.9,3539.5,0.02670105]
[1721607003318,5.82494,3539.9,3539.5,0.02670105]
[1721607003616,5.82494,3539.9,3539.2,0.58698533]
[1721607003816,5.82494,3539.9,3539.6,0.02670305]
[1721607003817,2.82502,3539.8,3539.6,0.02670305]
[1721607003965,2.82502,3539.8,3539.1,0.58698533]
[1721607003966,3.0,3539.7,3539.1,0.58698533]
[1721607004169,6.776554,3539.8,3539.7,0.02670305]
[1721607004401,6.776554,3539.8,3539.1,0.58698533]
[1721607004578,4.25276293,3539.8,3539.7,0.02670305]
[1721607004782,2.4338,3540.5,3539.2,0.58698533]
[1721607004783,3.0,3539.9,3539.2,0.58698533]
[1721607004988,3.0,3539.9,3539.7,0.02670305]
[1721607005191,3.0,3539.9,3539.0,0.58698533]
[1721607005394,2.82493,3539.9,3539.8,0.02670305]
[1721607005610,2.82493,3539.9,3539.1,0.66583697]
[1721607005812,2.82493,3539.9,3539.8,0.02670305]
[1721607006026,2.82478,3540.1,3539.1,0.66583697]
[1721607006319,2.82462,3540.3,3539.8,0.02670305]
[1721607006320,2.82466,3540.3,3539.8,0.02670305]
[1721607006491,0.282462,3540.3,3539.2,0.58698533]
[1721607006693,3.406684,3540.8,3539.9,0.02670305]
[1721607006882,2.82465,3540.3,3539.2,7.3]
[1721607007082,5.82472,3540.2,3539.3,2.4566174]
[1721607007302,2.82472,3540.2,3539.4,0.98264696]
[1721607007583,2.82472,3540.2,3539.2,7.3]
[1721607007584,3.0,3540.1,3539.2,7.3]
[1721607007826,3.0,3540.1,3539.5,0.02670305]
[1721607008032,3.0,3540.1,3539.3,0.85528223]
[1721607008207,3.0,3540.1,3539.6,0.02670305]
[1721607008412,3.0,3540.1,3539.3,0.85528223]
[1721607008614,3.0,3540.1,3539.7,0.02670305]
[1721607008829,3.0,3540.1,3539.3,0.85528223]
[1721607008830,5.82454,3540.4,3539.3,0.85528223]
[1721607009122,5.82454,3540.4,3539.8,0.02670305]
[1721607009322,5.82454,3540.4,3539.4,0.94081045]
[1721607009323,2.82486,3540.0,3539.4,0.94081045]
[1721607009498,3.0,3539.9,3539.4,0.94081045]
[1721607009823,2.8251,3539.7,3539.5,0.02670305]
[1721607010000,2.8251,3539.7,3538.9,9.6595]
[1721607010183,2.8251,3539.7,3539.6,0.02682109]
[1721607010385,5.8251,3539.7,3538.9,9.6595]
[1721607010612,3.0,3539.7,3539.6,0.02682109]
[1721607010792,3.0,3539.8,3538.9,13.07215533]
[1721607010985,0.582414,3540.8,3539.6,0.02682109]
[1721607010986,3.0,3540.0,3539.6,0.02682109]
[1721607011211,2.82438,3540.6,3539.1,3.07138533]
[1721607011426,5.82446,3540.5,3539.7,0.02682109]
[1721607011724,5.82446,3540.5,3539.3,2.82539]
[1721607011957,3.0,3540.5,3539.8,0.02682109]
[1721607012236,3.0,3540.5,3539.9,0.02682109]
[1721607012403,3.0,3540.5,3539.4,2.82532]
[1721607012601,2.82406,3541.0,3540.0,0.02682109]
[1721607012803,2.82399,3541.1,3539.7,7.3]
[1721607013031,0.1425872,3541.4,3540.1,0.02682109]
[1721607013032,2.82375,3541.4,3540.1,0.02682109]
[1721607013194,2.82375,3541.4,3540.2,0.98240323]
[1721607013397,2.82367,3541.5,3540.3,5.26185]
[1721607013598,5.6474,3541.5,3540.4,0.81134411]
[1721607013845,2.82367,3541.5,3540.4,0.8381652]
[1721607014011,2.82351,3541.7,3540.4,0.8381652]
[1721607014012,2.82376,3541.4,3540.4,0.8381652]
[1721607014646,2.82383,3541.3,3540.4,0.8381652]
[1721607014801,3.0,3541.2,3540.4,0.8381652]
[1721607015002,3.0,3541.2,3540.5,0.32754652]
[1721607015402,3.0,3541.2,3540.6,0.02682109]
[1721607016159,0.35,3541.7,3540.6,0.02682109]
[1721607016445,0.30369129,3542.8,3540.7,5.45977285]
[1721607016446,2.77418053,3542.8,3540.7,5.45977285]
[1721607016612,2.82279,3542.6,3541.1,7.3]
[1721607016816,2.82309,3542.3,3541.1,7.3]
[1721607017015,2.72296,3542.4,3541.1,7.3]
[1721607017215,2.72296,3542.4,3541.2,0.81551962]
[1721607017603,2.82319,3542.1,3541.2,0.81551962]
[1721607017803,2.82304,3542.3,3541.2,0.81551962]
[1721607018460,2.8229,3542.5,3541.3,5.2605]
[1721607018741,5.24467,3543.2,3541.5,2.82364]
[1721607018742,2.82276,3542.7,3541.5,2.82364]
[1721607018924,2.82276,3542.7,3541.6,0.835889]
[1721607019455,2.8228,3542.6,3541.7,0.02660515]
[1721607019820,2.8228,3542.6,3541.3,2.4367]
[1721607020026,2.82289,3542.5,3541.8,0.02660515]
[1721607020356,5.2446,3543.2,3541.3,2.4367]
[1721607020357,2.82295,3542.4,3541.3,2.4367]
[1721607020554,2.82295,3542.4,3541.9,0.02660515]
[1721607020839,2.82271,3542.7,3541.4,1.39362339]
[1721607021060,2.8228,3542.6,3542.0,0.02660515]
[1721607021214,3.0,3542.5,3541.4,4.21733339]
[1721607021418,3.0,3542.5,3542.1,0.02660515]
[1721607021659,3.0,3542.5,3541.5,0.80297173]
[1721607021832,3.0,3542.5,3542.2,0.02613929]
[1721607022235,3.0,3542.5,3541.5,0.80297173]
[1721607022451,3.0,3542.9,3542.3,0.02613929]
[1721607022674,2.82209,3543.5,3542.4,2.2789]
[1721607022836,2.82191,3543.7,3542.4,5.12796929]
[1721607023166,2.82191,3543.7,3542.4,12.42796929]
[1721607023345,2.82191,3543.7,3542.5,1.55360012]
[1721607023524,0.35,3543.9,3542.5,1.55360012]
[1721607023719,2.82216,3543.4,3542.5,1.55360012]
[1721607023957,3.0,3543.3,3542.6,0.02613929]
[1721607024125,2.82216,3543.4,3542.6,0.02613929]
[1721607024327,2.82244,3543.1,3542.6,0.02613929]
[1721607024638,2.82222,3543.3,3542.4,9.5789]
[1721607024852,2.82247,3543.0,3542.7,0.02584958]
[1721607025160,2.82247,3543.0,3542.4,9.5789]
[1721607025462,2.82254,3542.9,3542.4,9.5789]
[1721607025668,2.82241,3543.1,3542.5,0.02584958]
[1721607025871,3.0,3543.0,3542.5,0.02584958]
[1721607026365,2.82209,3543.5,3542.5,0.02584958]
[1721607026366,3.0,3543.4,3542.5,0.02584958]
[1721607026549,3.0,3543.4,3542.5,0.53863154]
[1721607026762,3.0,3543.6,3542.6,2.82274]
[1721607026922,5.82185,3543.8,3542.6,2.82274]
[1721607027127,5.82185,3543.8,3542.6,2.84855164]
[1721607027628,3.0,3543.8,3542.6,2.84855164]
[1721607027962,5.82177,3543.9,3542.7,1.57631136]
[1721607028341,5.82177,3543.9,3542.8,0.02579766]
[1721607028521,2.82185,3543.8,3542.8,0.02579766]
[1721607028726,3.0,3543.7,3542.8,0.02579766]
[1721607028922,4.164352,3543.7,3542.8,0.02579766]
[1721607029230,2.82175,3543.9,3542.8,0.02579766]
[1721607029231,3.0,3543.8,3542.8,0.02579766]
[1721607030140,2.82224,3543.3,3542.8,0.02579766]
[1721607030355,5.82231,3543.2,3542.5,7.3]
[1721607030677,5.82231,3543.2,3542.4,2.2789]
[1721607030960,3.0,3543.2,3542.6,0.02577769]
[1721607031186,3.0,3543.4,3542.7,0.02577769]
[1721607031346,3.0,3543.4,3542.4,2.2789]
[1721607031543,3.0,3543.4,3542.5,0.02577769]
[1721607032080,3.0,3543.4,3542.5,0.04980104]
[1721607032266,2.82175,3543.9,3542.6,5.28746]
[1721607032458,5.82183,3543.8,3542.6,5.33710326]
[1721607032665,3.0,3543.8,3542.9,2.82254]
[1721607032965,2.82165,3544.1,3543.0,0.58395423]
[1721607033279,0.2828,3545.3,3543.1,2.4647]
[1721607033495,2.82112,3544.7,3543.5,5.22074]
[1721607033664,2.82112,3544.7,3543.6,0.05643378]
[1721607033860,2.82095,3544.9,3543.7,5.22054]
[1721607034078,2.82095,3544.9,3543.8,0.80426]
[1721607034454,2.61057173,3545.5,3543.7,2.3987]
[1721607034654,0.35,3545.1,3543.9,7.34958136]
[1721607034860,2.82157,3544.2,3543.9,7.3]
[1721607035073,2.82157,3544.2,3544.0,0.04958136]
[1721607035389,2.82157,3544.2,3543.7,2.3987]
[1721607035589,3.0,3544.5,3543.7,2.3987]
[1721607035590,2.82166,3544.1,3543.7,2.3987]
[1721607035965,2.82167,3544.0,3543.7,2.3987]
[1721607036180,0.56431,3544.0,3543.2,9.5693]
[1721607036494,2.8219,3543.8,3543.2,9.5693]
[1721607036664,3.0,3544.5,3543.3,2.2693]
[1721607036865,3.11540178,3545.4,3543.3,2.2693]
[1721607036866,3.0,3545.3,3543.3,2.2693]
[1721607037105,2.82135,3544.4,3543.6,7.3]
[1721607037407,2.82202,3543.6,3543.3,2.2693]
[1721607037560,2.8221,3543.5,3543.3,2.2693]
[1721607038167,2.8221,3543.5,3542.7,7.3]
[1721607038168,0.564401,3543.5,3543.4,0.04954742]
[1721607038412,3.11525173,3545.5,3542.8,2.3141]
[1721607038413,2.82188,3543.8,3542.8,2.3141]
[1721607038614,2.82174,3544.0,3542.8,2.3141]
[1721607038773,3.0,3543.9,3542.8,5.13666]
[1721607038967,3.0,3544.0,3542.9,2.87208141]
[1721607039196,3.0,3544.0,3543.0,2.82245]
[1721607039402,3.0,3544.1,3543.1,0.51861014]
[1721607039614,5.82159,3544.1,3543.1,0.56816155]
[1721607039770,3.0,3544.1,3543.1,0.56816155]
[1721607040113,2.82188,3543.8,3543.1,0.56816155]
[1721607040284,3.0,3543.7,3543.1,0.04955141]
[1721607040607,3.0,3543.7,3542.8,2.3141]
[1721607040906,5.82193,3543.7,3543.2,0.04953943]
[1721607041200,5.82193,3543.7,3543.3,0.04953943]
[1721607041405,5.82193,3543.7,3542.8,2.3141]
[1721607041406,3.0,3543.7,3542.8,2.3141]
[1721607041571,3.0,3543.8,3543.4,0.04953943]
[1721607041774,3.0,3543.8,3542.9,1.243687]
[1721607042012,5.82188,3543.8,3543.5,0.04953943]
[1721607042325,3.0,3543.8,3542.8,2.3141]
[1721607042517,2.82213,3543.5,3542.9,0.96141]
[1721607042723,2.82198,3543.7,3542.9,0.04945357]
[1721607043008,3.0,3543.6,3542.9,0.04945357]
[1721607043165,2.82178,3543.9,3542.9,0.04945357]
[1721607043166,3.0,3543.8,3542.9,0.04945357]
[1721607043370,2.8215,3544.3,3543.1,5.30012]
[1721607043586,2.82152,3544.2,3543.2,0.04947553]
[1721607043785,2.82152,3544.2,3543.3,0.53495955]
[1721607044279,2.2581,3545.3,3543.4,0.04947553]
[1721607044280,2.82109,3544.8,3543.4,0.04947553]
[1721607044481,2.8216,3544.1,3543.4,7.34947553]
[1721607044709,2.82176,3543.9,3543.4,7.34947553]
[1721607045027,2.82098,3544.9,3543.4,0.04947553]
[1721607045028,2.82183,3543.8,3543.4,0.04947553]
[1721607045210,2.82206,3543.5,3543.1,2.4778]
[1721607045390,2.82198,3543.6,3543.5,0.04942163]
[1721607045579,3.0,3543.9,3543.1,2.4778]
[1721607045580,2.82209,3543.5,3543.1,2.4778]
[1721607046305,2.82217,3543.4,3543.1,2.4778]
[1721607046509,96.99258526,3543.1,3542.6,12.47]
[1721607046722,95.94554069,3543.1,3542.3,19.73]
[1721607047033,95.94554069,3543.1,3542.4,2.91736562]
[1721607048045,3.0,3543.0,3542.4,2.91736562]
[1721607049504,3.0,3543.0,3542.5,2.4089]
[1721607050308,3.0,3543.0,3542.5,5.23169]
[1721607050618,95.94554069,3543.1,3542.5,2.4089]
[1721607050933,95.94554069,3543.1,3542.6,5.32836656]
[1721607051338,95.94554069,3543.1,3542.7,2.82268]
[1721607051538,95.94554069,3543.1,3542.9,2.82254]
[1721607052462,95.94554069,3543.1,3542.9,2.82253]
[1721607052665,95.94554069,3543.1,3542.7,2.82266]
[1721607052965,95.94554069,3543.1,3542.8,0.85495345]
[1721607053342,95.94554069,3543.1,3542.8,0.805434]
[1721607054330,95.94554069,3543.1,3542.5,2.4089]
[1721607054736,95.94554069,3543.1,3542.6,0.04941961]
[1721607057737,95.94554069,3543.1,3542.7,0.98164307]
[1721607057940,95.94554069,3543.1,3542.6,0.04941961]
[1721607058257,95.94554069,3543.1,3542.7,0.04943958]
[1721607058465,95.94554069,3543.1,3542.7,3.40951349]
[1721607058683,95.94554069,3543.1,3542.8,1.03107042]
[1721607058866,95.94554069,3543.1,3543.0,2.82246]
[1721607059033,95.94554069,3543.1,3543.0,5.27647483]
[1721607059239,95.94554069,3543.1,3543.0,5.86346016]
[1721607059452,95.94554069,3543.1,3543.0,7.04694996]
[1721607059776,95.94554069,3543.1,3543.0,6.45996463]
[1721607059983,95.94554069,3543.1,3543.0,9.30910185]
[1721607060273,95.94554069,3543.1,3543.0,8.42296749]
[1721607060655,95.94554069,3543.1,3543.0,13.50212749]
[1721607060855,94.37519817,3543.1,3543.0,14.68278778]
[1721607061065,94.37519817,3543.1,3543.0,13.50177284]
[1721607061238,94.37519817,3543.1,3543.0,14.67676624]
[1721607061439,94.37519817,3543.1,3543.0,11.85430624]
[1721607061679,94.37519817,3543.1,3543.0,11.56066678]
[1721607061884,94.37519817,3543.1,3543.0,10.67931284]
[1721607062237,94.37519817,3543.1,3543.0,11.85430624]
[1721607063364,94.37519817,3543.1,3543.0,11.85546547]
[1721607063563,94.37519817,3543.1,3543.0,11.85553324]
[1721607063954,94.37519817,3543.1,3543.0,12.22426529]
[1721607064154,94.37519817,3543.1,3543.0,14.9719122]
[1721607064341,94.37519817,3543.1,3543.0,14.9224267]
[1721607064572,94.37519817,3543.1,3543.0,18.77770606]
[1721607064756,94.37519817,3543.1,3543.0,20.54186093]
[1721607065080,92.28178089,3543.1,3543.0,18.77770606]
[1721607065278,92.28178089,3543.1,3543.0,15.95524606]
[1721607065578,92.28178089,3543.1,3543.0,17.71947875]
[1721607066266,92.28178089,3543.1,3543.0,15.95524606]
[1721607066588,92.28178089,3543.1,3543.0,15.95498066]
[1721607066878,91.23499373,3543.1,3543.0,15.95498066]
[1721607067101,91.23499373,3543.1,3543.0,13.50151774]
[1721607068044,91.23499373,3543.1,3543.0,15.95498049]
[1721607068247,91.23499373,3543.1,3543.0,13.50151774]
[1721607068476,91.23499373,3543.1,3543.0,15.95498049]
[1721607068644,91.23499373,3543.1,3543.0,18.26976034]
[1721607069345,91.23499373,3543.1,3543.0,16.50498049]
[1721607069546,91.23499373,3543.1,3543.0,16.50488973]
[1721607069746,91.23499373,3543.1,3543.0,14.05142698]
[1721607071389,91.23499373,3543.1,3543.0,15.22857802]
[1721607071706,91.23499373,3543.1,3543.0,6.48280703]
[1721607071982,91.23499373,3543.1,3543.0,4.22554571]
[1721607072192,91.23499373,3543.1,3543.0,3.63680412]
[1721607072383,91.23499373,3543.1,3543.0,2.11533003]
[1721607072585,91.23499373,3543.1,3543.0,0.98152162]
[1721607072881,91.23499373,3543.1,3543.0,2.45367505]
[1721607073271,91.23499373,3543.1,3542.7,0.58682349]
[1721607073475,91.23499373,3543.1,3542.8,1.0307825]
[1721607073713,91.23499373,3543.1,3542.8,0.049234]
[1721607074211,91.23499373,3543.1,3542.6,0.58874159]
[1721607074407,91.23499373,3543.1,3542.7,3.07961011]
[1721607074701,91.23499373,3543.1,3542.7,0.67500865]
[1721607075474,91.23499373,3543.1,3542.7,0.049234]
[1721607075796,91.23499373,3543.1,3542.2,7.3]
[1721607076003,94.05738373,3543.1,3542.8,0.049234]
[1721607076319,94.05738373,3543.1,3542.2,7.3]
[1721607076498,91.23499373,3543.1,3542.3,0.73]
[1721607076810,91.23499373,3543.1,3542.3,0.779234]
[1721607079006,2.82255,3542.9,3542.3,0.779234]
[1721607079571,2.82262,3542.8,3542.3,0.049234]
[1721607079823,2.82252,3543.0,3542.3,0.049234]
[1721607080413,91.23499373,3543.1,3542.3,0.049234]
[1721607080414,2.82273,3542.7,3542.3,0.049234]
[1721607081775,2.82264,3542.8,3541.9,19.73]
[1721607082402,2.82264,3542.8,3542.0,0.04941766]
[1721607082620,2.82264,3542.8,3542.1,2.91736562]
[1721607082991,2.82264,3542.8,3542.2,0.04941766]
[1721607084602,3.0,3542.9,3542.2,0.04941766]
[1721607085228,94.05740373,3543.1,3542.2,0.04941766]
[1721607085229,3.0,3543.0,3542.2,0.04941766]
[1721607085427,3.0,3543.0,3542.3,0.57900233]
[1721607085802,3.0,3543.0,3542.4,0.04941766]
[1721607087119,2.82256,3542.9,3542.4,0.04941766]
[1721607087294,2.82263,3542.8,3542.4,0.04941766]
[1721607087490,2.82263,3542.8,3541.8,7.3]
[1721607087695,2.82263,3542.8,3541.9,2.54643227]
[1721607087917,2.82271,3542.7,3541.9,2.54643227]
[1721607088414,2.82257,3542.9,3541.9,2.54643227]
[1721607088912,3.0,3543.0,3541.9,2.54643227]
[1721607089106,3.0,3543.0,3542.2,2.8231]
[1721607089332,3.0,3543.0,3542.3,0.28231]
[1721607091028,5.82248,3543.0,3542.3,0.28231]
[1721607091251,5.82248,3543.0,3541.9,2.496799]
[1721607091429,2.4741,3542.8,3542.0,0.0496732]
[1721607091630,2.82318,3542.1,3542.0,0.0496732]
[1721607091828,2.82328,3542.0,3541.8,7.3]
[1721607091997,2.82328,3542.0,3541.6,0.5890953]
[1721607092716,2.2815,3541.7,3539.7,2.9296552]
[1721607092923,3.17358,3541.6,3539.8,0.05649282]
[1721607093105,3.0,3541.5,3540.2,2.82467]
[1721607093311,3.0,3541.5,3539.8,2.88142282]
[1721607093530,3.0,3541.6,3539.9,0.5811078]
[1721607093708,2.82366,3541.5,3539.9,0.5811078]
[1721607093891,5.82374,3541.4,3540.2,2.82467]
[1721607094949,2.82344,3541.8,3540.3,0.05647951]
[1721607095176,5.82351,3541.7,3540.4,2.82451]
[1721607095478,2.82359,3541.6,3540.5,0.79870995]
[1721607095838,2.82359,3541.6,3540.5,3.62315995]
[1721607096077,2.82359,3541.6,3540.5,0.79870995]
[1721607096674,3.0,3541.7,3540.6,2.88083532]
[1721607097594,3.0,3541.7,3540.7,2.82427]
[1721607097800,3.0,3541.8,3540.8,0.362298]
[1721607097960,3.0,3542.0,3540.9,2.82413]
[1721607098296,5.82328,3542.0,3540.9,2.86741357]
[1721607098598,3.0,3542.0,3540.9,2.86741357]
[1721607098768,3.0,3542.0,3541.0,2.82403]
[1721607098972,2.82278,3542.7,3541.2,2.369]
[1721607099166,2.82278,3542.7,3541.5,2.82364]
[1721607099562,2.82278,3542.7,3541.3,9.1262306]
[1721607099563,5.15826,3543.2,3541.9,2.82333]
[1721607100066,5.15828,3543.2,3541.8,2.82339]
[1721607100403,2.82265,3542.8,3541.9,0.337339]
[1721607100600,2.82271,3542.7,3541.9,0.337339]
[1721607100776,2.82257,3542.9,3541.6,3.37355]
[1721607100977,2.82247,3543.0,3541.6,3.37355]
[1721607101311,2.82277,3542.7,3541.7,0.04313097]
[1721607101678,2.82277,3542.7,3541.6,0.55]
[1721607101874,2.82277,3542.7,3541.7,0.04313097]
[1721607102091,2.82277,3542.7,3541.8,0.3416761]
[1721607102812,2.82255,3542.9,3541.8,3.1650861]
[1721607103131,91.23499373,3543.1,3542.0,2.82325]
[1721607103281,3.0,3543.0,3541.9,9.1257306]
[1721607103477,3.0,3543.0,3542.0,0.98972707]
[1721607104775,5.82247,3543.0,3542.0,0.98972707]
[1721607104981,2.82257,3542.9,3542.0,0.98972707]
[1721607105200,2.82257,3542.9,3542.0,0.94674067]
[1721607106019,2.82278,3542.6,3541.9,6.3024206]
[1721607107097,2.82262,3542.8,3541.9,6.3024206]
[1721607107098,2.82289,3542.5,3541.9,6.3024206]
[1721607107698,2.8227,3542.7,3541.9,6.3024206]
[1721607108011,5.82254,3543.0,3541.9,9.1257606]
[1721607108012,3.0,3543.0,3541.9,9.1257606]
[1721607108319,3.0,3543.0,3542.0,0.95545447]
[1721607108520,5.82249,3543.0,3542.0,0.95545447]
[1721607109011,3.0,3543.0,3542.0,0.95545447]
[1721607109190,3.0,3543.0,3542.1,0.05645441]
[1721607109386,91.23499373,3543.1,3542.2,2.4334544]
[1721607109626,91.23499373,3543.1,3542.3,0.33460305]
[1721607111802,94.05737373,3543.1,3542.3,0.33460305]
[1721607115210,2.82253,3543.0,3541.9,6.3024206]
[1721607115460,91.23499373,3543.1,3541.9,6.3024206]
[1721607115461,91.23499373,3543.1,3541.9,9.1256906]
[1721607115744,2.82247,3543.0,3542.0,0.04263444]
[1721607116251,91.23499373,3543.1,3542.0,0.04263444]
[1721607116853,2.82254,3542.9,3542.0,0.04263444]
[1721607117032,2.82254,3542.9,3542.1,0.9168415]
[1721607117577,2.82254,3542.9,3542.2,0.04262107]
[1721607121110,2.82264,3542.8,3542.2,0.04262107]
[1721607121311,91.23499373,3543.1,3542.2,0.04262107]
[1721607121571,2.82287,3542.5,3541.9,6.3024206]
[1721607122155,2.82316,3542.2,3542.0,0.04249513]
[1721607122443,2.8227,3542.7,3542.0,0.04249513]
[1721607122444,2.82318,3542.1,3542.0,0.04249513]
[1721607122750,2.82312,3542.2,3542.0,0.04257702]
[1721607122917,2.82312,3542.2,3541.5,6.3024206]
[1721607123123,2.82319,3542.1,3541.6,0.04257702]
[1721607123331,2.82319,3542.1,3540.6,0.88094509]
[1721607123332,2.3658,3542.0,3540.6,0.88094509]
[1721607123529,2.3658,3541.0,3539.2,1.47357506]
[1721607123728,2.3658,3541.0,3538.8,0.88094509]
[1721607123729,0.518985,3540.9,3539.4,2.2657]
[1721607123911,3.0,3541.0,3539.6,2.2657]
[1721607124221,3.28227,3542.6,3539.6,2.2657]
[1721607124222,2.82351,3541.7,3540.5,2.2657]
[1721607124420,2.82334,3541.9,3540.5,2.2657]
[1721607124619,2.82359,3541.6,3540.5,2.2657]
[1721607125025,2.82382,3541.3,3540.5,2.2657]
[1721607125249,2.82366,3541.5,3540.5,2.2657]
[1721607125413,2.82384,3541.3,3540.5,2.49227]
[1721607126026,2.82392,3541.2,3540.5,2.49227]
[1721607126211,2.8243,3540.7,3540.0,2.4286]
[1721607126413,2.3461,3541.7,3540.0,2.4286]
[1721607126414,2.82439,3540.6,3540.0,2.4286]
[1721607126725,2.82454,3540.4,3539.5,2.4286]
[1721607127263,2.82464,3540.3,3539.5,2.4286]
[1721607127415,2.82464,3540.3,3539.5,2.67146]
[1721607128041,2.338153,3540.3,3539.5,2.67146]
[1721607128255,2.82414,3540.9,3539.5,2.67146]
[1721607128416,3.0,3541.1,3538.9,2.299]
[1721607128417,2.82492,3540.0,3538.9,2.299]
[1721607128850,2.82474,3540.2,3538.9,2.299]
[1721607128851,2.338293,3540.1,3539.0,0.03415802]
[1721607129161,3.0,3540.5,3539.0,0.03415802]
[1721607129162,2.82486,3540.0,3539.0,0.03415802]
[1721607129334,2.8247,3540.2,3539.0,0.03415802]
[1721607129335,2.82495,3539.9,3539.0,0.03415802]
[1721607129533,2.82495,3539.9,3539.1,0.2333158]
[1721607129921,2.82495,3539.9,3539.2,0.03415802]
[1721607130121,5.64995,3539.9,3539.2,0.03415802]
[1721607130319,2.82495,3539.9,3539.2,0.03415802]
[1721607137347,2.82479,3540.1,3539.2,0.03415802]
[1721607137954,2.82479,3540.1,3539.2,1.3033784]
[1721607138267,2.82487,3540.0,3539.2,1.3033784]
[1721607138567,2.82494,3539.9,3539.2,1.3033784]
[1721607139339,89.93161533,3539.2,3539.1,0.2333158]
[1721607139558,89.3420408,3539.2,3539.1,0.2333158]
[1721607141483,89.3420408,3539.2,3538.9,2.299]
[1721607142348,89.3420408,3539.2,3538.9,5.12469]
[1721607142548,89.3420408,3539.2,3538.9,2.299]
[1721607142749,89.3420408,3539.2,3538.9,5.12471]
[1721607144303,89.3420408,3539.2,3539.1,2.82557]
[1721607144486,88.29391836,3539.2,3539.1,3.620592]
[1721607144783,88.29391836,3539.2,3539.1,4.170592]
[1721607145495,88.29391836,3539.2,3539.1,1.345022]
[1721607145652,88.29391836,3539.2,3539.1,0.795022]
[1721607145985,88.29391836,3539.2,3538.9,2.299]
[1721607146185,88.29391836,3539.2,3539.0,0.55]
[1721607146350,88.29391836,3539.2,3539.0,0.58390488]
[1721607148102,88.29391836,3539.2,3539.0,0.03390488]
[1721607148612,88.29391836,3539.2,3538.7,0.55]
[1721607148761,88.29391836,3539.2,3539.1,0.03285889]
[1721607148962,88.29391836,3539.2,3538.8,1.067596]
[1721607149164,88.29391836,3539.2,3538.9,0.03285889]
[1721607151895,88.29391836,3539.2,3539.0,0.03177292]
[1721607152105,88.29391836,3539.2,3538.5,7.3]
[1721607152318,88.29391836,3539.2,3538.6,2.83928492]
[1721607152727,88.29391836,3539.2,3538.6,0.03177292]
[1721607152728,2.82566,3539.0,3538.6,0.03177292]
[1721607152942,88.29391836,3539.2,3538.6,0.03177292]
[1721607152943,91.11943836,3539.2,3538.6,0.03177292]
[1721607153442,2.82559,3539.1,3538.6,0.03177292]
[1721607154429,2.82565,3539.0,3538.6,0.03177292]
[1721607155940,2.82565,3539.0,3538.1,7.3]
[1721607156234,2.82573,3538.9,3538.2,0.03075426]
[1721607156657,2.82562,3539.1,3538.2,0.03075426]
[1721607156847,2.82562,3539.1,3538.2,1.00003969]
[1721607157007,2.82569,3539.0,3538.2,0.96928543]
[1721607157342,2.82569,3539.0,3538.3,0.03075426]
[1721607157520,2.82574,3538.9,3538.1,7.3]
[1721607157725,2.82574,3538.9,3538.2,0.03075426]
[1721607158310,2.82582,3538.8,3538.2,0.03075426]
[1721607158913,2.826,3538.6,3538.2,0.03075426]
[1721607159110,2.82582,3538.8,3538.1,7.3]
[1721607159111,2.82605,3538.5,3538.1,7.3]
[1721607159414,2.82614,3538.4,3538.1,7.3]
[1721607159749,2.82614,3538.4,3538.2,0.03093234]
[1721607159935,2.82621,3538.3,3538.2,0.03093234]
[1721607160626,2.82632,3538.2,3537.6,7.3]
[1721607160828,2.82632,3538.2,3537.2,19.77]
[1721607161030,2.82632,3538.2,3537.7,0.03093234]
[1721607161234,2.82632,3538.2,3537.2,19.77]
[1721607161437,2.82632,3538.2,3537.8,0.03105444]
[1721607161655,3.355234,3538.4,3537.2,19.77]
[1721607161656,2.82639,3538.1,3537.2,19.77]
[1721607161947,2.82645,3538.0,3537.2,19.77]
[1721607162134,2.82645,3538.0,3537.3,0.03105444]
[1721607162535,2.8263,3538.2,3537.3,0.03105444]
[1721607162740,2.8263,3538.2,3537.3,2.24830988]
[1721607163137,3.355234,3538.4,3537.3,2.24830988]
[1721607163362,2.82623,3538.3,3537.3,2.24830988]
[1721607164872,2.4649,3538.5,3537.3,2.24830988]
[1721607165037,2.82582,3538.8,3537.3,0.03105444]
[1721607165237,3.0,3538.7,3537.3,0.03105444]
[1721607165973,2.82604,3538.6,3537.5,2.82682]
[1721607166135,3.0,3538.5,3537.5,2.82682]
[1721607166333,3.0,3538.5,3537.6,0.03133664]
[1721607166334,5.82606,3538.5,3537.6,0.03133664]
[1721607166557,5.82606,3538.5,3537.3,2.82697]
[1721607166558,2.82613,3538.4,3537.3,2.82697]
[1721607166759,2.82613,3538.4,3537.4,0.03133664]
[1721607168260,2.82621,3538.3,3537.4,0.03133664]
[1721607168568,2.4507,3538.3,3537.2,7.3]
[1721607168770,3.0949028,3538.3,3537.3,0.03133664]
[1721607168975,5.9211228,3538.3,3537.3,0.03133664]
[1721607169384,5.27692,3538.3,3537.3,0.03133664]
[1721607169584,5.4677,3538.7,3537.7,2.82668]
[1721607169789,2.4677,3538.7,3537.7,5.27558]
[1721607170087,3.0,3538.7,3537.7,2.4489]
[1721607170322,2.82566,3539.0,3537.7,2.4489]
[1721607170587,3.0,3538.9,3537.8,0.527566]
[1721607170954,3.0,3538.9,3537.9,2.82651]
[1721607171353,3.0,3538.9,3537.8,0.527566]
[1721607172084,3.0,3538.9,3537.9,2.82653]
[1721607172284,2.82572,3539.0,3537.9,2.82653]
[1721607172592,5.4677,3539.1,3538.0,3.6893776]
[1721607172593,3.0,3538.9,3538.0,3.6893776]
[1721607172801,3.0,3539.0,3538.0,3.6893776]
[1721607173649,3.0,3539.0,3538.1,2.82636]